bitfinex/quotes_ETHUSD_20250114
["timestamp","ask_amount","ask_price","bid_price","bid_amount"]
[1736833425884,3.1499,3174.7,3174.5,0.18098243]
[1736833426251,3.1499,3174.7,3174.2,0.7562]
[1736833426457,3.1499,3174.7,3174.6,0.18093787]
[1736833426660,3.52779464,3174.7,3174.2,0.7562]
[1736833426878,3.1499,3174.7,3174.6,0.18093787]
[1736833427077,3.1499,3174.7,3174.2,0.7562]
[1736833427241,3.1499,3174.7,3174.6,0.18090571]
[1736833427641,3.1499,3174.7,3174.2,0.7562]
[1736833427875,3.1499,3174.7,3174.6,0.18090571]
[1736833428361,3.1499,3174.7,3174.2,0.7562]
[1736833428562,3.1499,3174.7,3174.6,0.18090571]
[1736833429071,3.1499,3174.7,3174.2,0.7562]
[1736833429589,3.1499,3174.7,3174.3,0.18103937]
[1736833430095,3.1499,3174.7,3174.2,0.7562]
[1736833430460,3.1499,3174.7,3174.3,0.18103937]
[1736833430790,3.1499,3174.7,3174.2,0.7562]
[1736833431087,3.1499,3174.7,3174.4,0.18099482]
[1736833431260,3.1499,3174.7,3174.3,0.18103937]
[1736833431462,3.1499,3174.7,3174.5,0.18095026]
[1736833431689,3.1499,3174.7,3174.4,0.18099482]
[1736833431891,3.983,3174.7,3174.6,0.18090571]
[1736833432093,3.15,3174.6,3174.5,0.18095026]
[1736833432305,3.15013,3174.5,3173.9,5.0723387]
[1736833436303,0.62499407,3174.2,3173.9,5.0723387]
[1736833436602,0.62499407,3174.2,3173.7,0.7742]
[1736833436928,0.62499407,3174.2,3174.0,0.18120524]
[1736833437204,0.62499407,3174.2,3174.1,0.18110277]
[1736833437610,0.62499407,3174.2,3173.7,0.7742]
[1736833437812,0.62499407,3174.2,3174.1,0.18110277]
[1736833437996,0.62499407,3174.2,3173.7,0.7742]
[1736833438175,0.62499407,3174.2,3174.1,0.18110277]
[1736833438376,0.62499407,3174.2,3173.7,1.35885387]
[1736833438592,3.15031,3174.3,3174.1,0.18141161]
[1736833438890,3.15031,3174.3,3173.7,0.7742]
[1736833439093,3.15031,3174.3,3174.2,0.18136704]
[1736833439264,0.8331,3174.6,3173.7,0.7742]
[1736833439466,0.8331,3174.6,3174.2,0.18136704]
[1736833439666,0.8331,3174.6,3173.7,0.7742]
[1736833439866,0.8331,3174.6,3174.3,0.18129031]
[1736833440090,0.8331,3174.6,3173.7,0.7742]
[1736833440500,0.8331,3174.6,3173.8,0.5771817]
[1736833440709,3.98319,3174.6,3173.8,0.5771817]
[1736833440911,0.62862626,3174.5,3173.8,0.18151315]
[1736833441082,3.77876626,3174.5,3173.8,0.18151315]
[1736833443091,0.8331,3174.6,3173.8,0.18151315]
[1736833443286,0.7527,3174.9,3173.9,0.80070377]
[1736833443499,3.90243,3174.9,3173.9,0.80070377]
[1736833443688,3.90243,3174.9,3174.0,0.59475487]
[1736833443886,3.90243,3174.9,3174.1,0.03150125]
[1736833444092,0.64643008,3174.8,3174.1,0.03150125]
[1736833444295,0.64643008,3174.8,3174.2,0.18136704]
[1736833445214,3.79625008,3174.8,3174.3,0.18132248]
[1736833445580,3.79625008,3174.8,3174.0,0.41329869]
[1736833445779,3.79625008,3174.8,3174.4,0.18127792]
[1736833446018,3.79625008,3174.8,3174.0,0.41329869]
[1736833446217,3.79625008,3174.8,3174.5,0.18123337]
[1736833446392,0.64643008,3174.8,3174.5,0.7692]
[1736833446598,0.64643008,3174.8,3174.6,0.18118881]
[1736833449821,0.64643008,3174.8,3174.2,0.7692]
[1736833450022,0.64643008,3174.8,3174.7,0.18114426]
[1736833450225,0.64643008,3174.8,3174.2,0.7692]
[1736833450619,0.64643008,3174.8,3174.3,0.18132248]
[1736833451108,0.64643008,3174.8,3174.2,0.7692]
[1736833451285,0.64643008,3174.8,3174.4,0.18127792]
[1736833451491,0.64643008,3174.8,3174.3,0.21282231]
[1736833451689,0.64643008,3174.8,3174.5,0.18123337]
[1736833451894,0.64643008,3174.8,3174.4,0.18127792]
[1736833452095,0.64643008,3174.8,3174.6,0.18118881]
[1736833452302,0.64643008,3174.8,3174.5,0.18123337]
[1736833452498,0.64643008,3174.8,3174.7,0.18114426]
[1736833452698,0.64643008,3174.8,3174.6,0.18118881]
[1736833452921,0.64643008,3174.8,3174.2,0.7692]
[1736833453425,0.64643008,3174.8,3174.3,0.18107155]
[1736833453625,0.64643008,3174.8,3174.2,0.7692]
[1736833453794,0.64643008,3174.8,3174.4,0.18102699]
[1736833453997,0.64643008,3174.8,3174.3,0.18107155]
[1736833454193,0.64643008,3174.8,3174.5,0.18098243]
[1736833454394,0.64643008,3174.8,3174.4,0.18102699]
[1736833454717,0.64643008,3174.8,3174.6,0.18093788]
[1736833454911,0.64643008,3174.8,3174.5,0.18098243]
[1736833455114,0.64643008,3174.8,3174.7,0.18089333]
[1736833455300,0.64643008,3174.8,3174.6,0.18093788]
[1736833455501,0.64643008,3174.8,3174.2,0.7692]
[1736833455702,0.64643008,3174.8,3174.7,0.18089333]
[1736833455903,0.64643008,3174.8,3174.2,0.7692]
[1736833456307,0.64643008,3174.8,3174.3,0.18107155]
[1736833456734,0.64643008,3174.8,3174.2,0.80069986]
[1736833456940,0.64643008,3174.8,3174.4,0.18102699]
[1736833457141,0.64643008,3174.8,3174.3,0.18107155]
[1736833457325,0.64643008,3174.8,3174.5,0.18098243]
[1736833457512,0.64643008,3174.8,3174.4,0.18102699]
[1736833457713,3.79624008,3174.8,3174.6,0.18093788]
[1736833458041,3.79624008,3174.8,3174.7,0.18089333]
[1736833458492,3.79624008,3174.8,3174.2,0.7692]
[1736833458894,3.79624008,3174.8,3174.3,0.18107155]
[1736833459196,3.79624008,3174.8,3174.2,0.7692]
[1736833459496,3.79624008,3174.8,3174.4,0.18102699]
[1736833459692,3.79624008,3174.8,3174.3,0.18107155]
[1736833459932,3.79624008,3174.8,3174.5,0.18098243]
[1736833460134,3.79624008,3174.8,3174.4,0.18102699]
[1736833460445,3.79624008,3174.8,3174.5,0.18098243]
[1736833460793,3.79624008,3174.8,3174.2,0.7692]
[1736833461092,3.79624008,3174.8,3174.6,0.18093788]
[1736833461292,3.79624008,3174.8,3174.2,0.7692]
[1736833461518,3.79624008,3174.8,3174.7,0.18089333]
[1736833461723,3.79624008,3174.8,3174.2,0.7692]
[1736833462029,3.79624008,3174.8,3174.3,0.18107155]
[1736833462393,3.79624008,3174.8,3174.2,0.7692]
[1736833462625,3.79624008,3174.8,3174.4,0.18102699]
[1736833462835,3.79624008,3174.8,3174.3,0.18107155]
[1736833463123,3.79624008,3174.8,3174.5,0.18098243]
[1736833463324,3.79624008,3174.8,3174.4,0.18102699]
[1736833463526,3.79624008,3174.8,3174.6,0.18093788]
[1736833463826,3.79624008,3174.8,3174.7,0.18089333]
[1736833464338,3.79624008,3174.8,3174.2,0.7692]
[1736833464631,3.79624008,3174.8,3174.3,0.18107155]
[1736833465123,3.79624008,3174.8,3174.2,0.7692]
[1736833465331,3.79624008,3174.8,3174.4,0.18102699]
[1736833465502,0.64643008,3174.8,3174.3,0.18107155]
[1736833465703,0.64643008,3174.8,3174.5,0.18098243]
[1736833465903,0.64643008,3174.8,3174.4,0.18102699]
[1736833466095,0.64643008,3174.8,3174.6,0.18093788]
[1736833466295,0.64643008,3174.8,3174.5,0.18098243]
[1736833466607,0.64643008,3174.8,3174.6,0.18093788]
[1736833467099,3.90241,3174.9,3174.2,0.80069992]
[1736833467292,3.90241,3174.9,3174.7,0.18089333]
[1736833467495,3.15,3174.6,3174.0,0.7733]
[1736833467798,0.7527,3174.9,3174.1,0.18116068]
[1736833467799,0.8136,3174.5,3174.1,0.18116068]
[1736833468016,3.15031,3174.3,3174.1,0.18116068]
[1736833468231,3.15031,3174.3,3173.9,5.0723387]
[1736833468397,0.8136,3174.1,3173.5,0.7733]
[1736833469509,0.8136,3174.1,3173.2,0.7814]
[1736833469695,3.15062,3174.0,3173.2,0.7814]
[1736833471234,3.15062,3174.0,3173.2,3.7814]
[1736833471903,3.15062,3174.0,3173.2,0.7814]
[1736833472105,3.15062,3174.0,3173.2,1.82510685]
[1736833473408,3.15071,3173.9,3173.2,1.82510685]
[1736833474208,0.8136,3174.1,3173.2,1.82510685]
[1736833474417,3.96418,3174.1,3173.2,1.82510685]
[1736833475840,3.15064,3174.0,3173.2,1.82510685]
[1736833476041,3.15064,3174.0,3173.3,0.83292154]
[1736833478058,3.15075,3173.9,3173.2,0.7814]
[1736833478416,0.8136,3174.1,3173.2,0.7814]
[1736833478719,0.8258,3173.6,3173.0,0.7814]
[1736833479956,1.45054542,3173.6,3173.0,0.7814]
[1736833481939,1.45054542,3173.6,3173.1,0.18257175]
[1736833482488,3.15126,3173.4,3173.1,0.18257175]
[1736833482969,3.15126,3173.4,3172.7,5.01857409]
[1736833483269,3.15126,3173.4,3172.8,0.18271198]
[1736833483436,3.61144054,3173.4,3172.8,0.18271198]
[1736833484966,1.45054542,3173.6,3172.8,0.18271198]
[1736833485139,1.45054542,3173.6,3172.8,1.64599714]
[1736833485339,4.60155542,3173.6,3172.9,0.7814]
[1736833485689,4.60155542,3173.6,3173.0,0.18275798]
[1736833486769,3.77575542,3173.6,3173.0,0.18275798]
[1736833486967,0.62474542,3173.6,3173.0,0.18275798]
[1736833487173,0.8258,3174.2,3173.1,0.81291251]
[1736833487476,3.15063,3174.0,3173.2,0.18259797]
[1736833487973,3.15073,3173.9,3173.2,0.18259797]
[1736833489701,0.63816753,3173.8,3173.2,0.18259797]
[1736833489999,3.15073,3173.9,3173.3,0.7814]
[1736833490512,3.15073,3173.9,3173.4,0.18236074]
[1736833490794,0.8258,3174.2,3173.4,0.18236074]
[1736833490994,3.15064,3174.0,3173.4,0.18236074]
[1736833491770,0.64441974,3173.9,3173.4,0.18236074]
[1736833492188,3.15064,3174.0,3173.4,0.18236074]
[1736833492585,3.15041,3174.2,3173.5,0.81291005]
[1736833492787,3.14642842,3174.4,3173.6,0.1823681]
[1736833492992,3.14642842,3174.4,3173.7,0.7814]
[1736833493306,3.14642842,3174.4,3173.8,0.18219527]
[1736833493307,3.76577616,3174.4,3173.8,0.18219527]
[1736833498471,0.61934774,3174.4,3173.8,0.18219527]
[1736833498710,3.15069,3173.9,3173.8,0.18219527]
[1736833499101,3.15069,3173.9,3173.4,0.7814]
[1736833499295,3.15069,3173.9,3173.4,1.36677387]
[1736833499503,3.15081,3173.8,3173.5,0.17603878]
[1736833499926,3.97644,3174.0,3173.5,0.17603878]
[1736833500318,3.15093,3173.7,3173.5,0.17603878]
[1736833500488,3.15099,3173.6,3173.5,0.17603878]
[1736833500909,3.15099,3173.6,3173.2,0.8123]
[1736833501111,3.93149,3173.6,3173.5,0.1762254]
[1736833501323,3.15112,3173.5,3173.0,0.8123]
[1736833501506,3.93149,3173.6,3173.5,0.1762254]
[1736833501708,3.15151,3173.1,3172.6,0.8123]
[1736833501958,0.0075,3173.5,3172.6,0.8123]
[1736833502131,3.1512,3173.4,3172.8,0.8123]
[1736833502341,3.151,3173.6,3172.9,0.03151399]
[1736833502632,3.151,3173.6,3172.9,0.20811636]
[1736833503235,3.151,3173.6,3172.9,0.17660237]
[1736833503433,1.41314442,3173.8,3172.9,0.17660237]
[1736833503434,1.41314442,3173.8,3173.0,0.03151278]
[1736833503635,4.56395442,3173.8,3173.1,0.8123]
[1736833503829,0.63264442,3173.8,3173.2,0.03151266]
[1736833504007,3.1507,3173.9,3173.1,0.98918033]
[1736833504208,3.1507,3173.9,3173.3,0.17679115]
[1736833504518,3.1507,3173.9,3173.2,0.78298764]
[1736833504719,3.1507,3173.9,3173.4,0.17674656]
[1736833505033,3.1507,3173.9,3173.5,0.17670198]
[1736833505205,3.15084,3173.8,3173.5,0.17670198]
[1736833505402,3.15084,3173.8,3173.2,0.6061519]
[1736833505607,3.15084,3173.8,3173.3,0.17679115]
[1736833506126,3.15084,3173.8,3173.2,0.6061519]
[1736833506327,3.15084,3173.8,3173.4,0.17674656]
[1736833506517,3.15084,3173.8,3173.3,0.17679115]
[1736833506711,3.15084,3173.8,3173.5,0.17670198]
[1736833506920,3.15084,3173.8,3173.4,0.17674656]
[1736833507138,3.15084,3173.8,3173.6,0.1766574]
[1736833507313,3.15084,3173.8,3173.5,0.17670198]
[1736833507520,3.15084,3173.8,3173.7,0.17661282]
[1736833508011,3.15084,3173.8,3173.1,0.8123]
[1736833508220,3.15084,3173.8,3173.7,0.17661282]
[1736833508427,3.15084,3173.8,3173.1,0.8123]
[1736833508649,3.15084,3173.8,3173.7,0.17661282]
[1736833508957,3.15084,3173.8,3173.1,0.8123]
[1736833509159,3.15084,3173.8,3173.7,0.17661282]
[1736833509363,3.15084,3173.8,3173.1,0.8123]
[1736833509669,3.15084,3173.8,3173.2,0.58846387]
[1736833509848,0.64122802,3173.9,3173.2,0.76529961]
[1736833510170,0.64122802,3173.9,3173.3,0.8123]
[1736833510650,0.64122802,3173.9,3173.4,0.17674656]
[1736833511014,3.79194802,3173.9,3173.4,0.17674656]
[1736833511216,3.1505,3174.1,3173.5,0.8123]
[1736833511617,3.1505,3174.1,3173.6,0.17639992]
[1736833512411,0.62520916,3174.0,3173.6,0.17639992]
[1736833515226,0.62520916,3174.0,3173.7,0.8015]
[1736833515428,3.15001,3174.6,3173.9,0.8015]
[1736833515820,0.64604737,3174.2,3174.0,0.17556515]
[1736833516014,3.15001,3174.6,3174.0,0.17556515]
[1736833516250,0.63082916,3174.3,3174.0,0.17556515]
[1736833518075,3.15001,3174.6,3174.0,0.17556515]
[1736833518877,0.63266162,3174.4,3174.0,0.17556515]
[1736833519953,3.14977,3174.9,3174.1,0.83300267]
[1736833520380,3.14977,3174.9,3174.2,0.16946579]
[1736833520924,3.77605449,3174.9,3174.2,0.16946579]
[1736833524528,3.77605449,3174.9,3174.3,0.7747]
[1736833524847,3.77605449,3174.9,3174.4,0.16928018]
[1736833529573,3.14981,3174.8,3174.4,0.16928018]
[1736833530446,3.15001,3174.6,3174.4,0.16928018]
[1736833530634,3.1501,3174.5,3174.4,0.16928018]
[1736833530846,3.9381,3174.5,3174.4,0.16928018]
[1736833531133,3.15045,3174.2,3173.8,0.8024]
[1736833531353,3.15069,3173.9,3173.4,0.8024]
[1736833531534,3.15069,3173.9,3173.4,2.11852238]
[1736833532854,3.15069,3173.9,3173.4,0.8024]
[1736833533663,0.788,3174.0,3173.4,0.8024]
[1736833533664,3.15081,3173.8,3173.4,0.8024]
[1736833533870,0.788,3174.0,3173.1,0.8024]
[1736833534034,3.15102,3173.6,3173.1,0.8024]
[1736833534442,3.78768923,3173.6,3173.1,0.8024]
[1736833535060,3.78768923,3173.6,3173.1,1.38987387]
[1736833535251,3.15087,3173.8,3173.1,1.38987387]
[1736833536563,0.63679549,3173.7,3173.1,1.38987387]
[1736833536885,3.78769549,3173.7,3173.1,0.8024]
[1736833537187,3.15107,3173.6,3173.1,0.8024]
[1736833541250,0.63679549,3173.7,3173.1,0.8024]
[1736833541453,3.78768549,3173.7,3173.1,0.8024]
[1736833542079,3.78768549,3173.7,3173.2,0.2164633]
[1736833543605,0.63679549,3173.7,3173.2,0.2164633]
[1736833543806,3.15109,3173.5,3173.2,0.2164633]
[1736833544778,3.91709,3173.5,3173.2,0.2164633]
[1736833545179,3.15109,3173.5,3173.2,0.2164633]
[1736833545709,0.63679549,3173.7,3173.2,0.2164633]
[1736833546015,3.15119,3173.5,3173.2,0.2164633]
[1736833550531,3.78771549,3173.7,3173.2,0.2164633]
[1736833551575,3.78771549,3173.7,3173.3,0.7714]
[1736833551981,3.78771549,3173.7,3173.4,0.21711768]
[1736833555888,0.63679549,3173.7,3173.4,0.21711768]
[1736833556302,3.15058,3174.1,3173.5,0.7714]
[1736833556508,3.15058,3174.1,3173.5,0.98847164]
[1736833556707,3.15058,3174.1,3173.5,1.1644588]
[1736833557819,3.15058,3174.1,3173.6,0.7714]
[1736833558131,0.63527048,3174.0,3173.7,0.21683148]
[1736833558294,0.63527048,3174.0,3173.8,0.7714]
[1736833558725,0.63527048,3174.0,3173.9,0.21673942]
[1736833559327,3.15031,3174.3,3173.9,0.21673942]
[1736833559628,0.61816998,3174.1,3173.9,0.21673942]
[1736833561523,3.15059,3174.0,3173.9,0.21673942]
[1736833561725,3.610246,3174.0,3173.9,0.21673942]
[1736833561923,3.610246,3174.0,3173.4,0.7714]
[1736833562128,3.15088,3173.8,3173.4,0.7714]
[1736833562348,3.15088,3173.8,3173.5,0.21680127]
[1736833562496,3.15059,3174.0,3173.5,0.21680127]
[1736833562693,3.15099,3173.6,3173.3,0.8096]
[1736833562914,3.15099,3173.6,3173.2,0.8096]
[1736833563111,3.15099,3173.6,3173.1,0.8096]
[1736833563315,3.15099,3173.6,3173.1,2.072399]
[1736833563625,3.15118,3173.5,3173.1,2.072399]
[1736833563807,3.15118,3173.5,3173.1,0.8096]
[1736833564236,3.15125,3173.4,3173.1,0.8096]
[1736833565017,3.79846873,3173.4,3173.1,0.8096]
[1736833565352,3.79846873,3173.4,3172.8,5.0723387]
[1736833565553,0.64721873,3173.4,3172.9,1.262882]
[1736833565717,3.15139,3173.2,3172.9,1.262882]
[1736833565920,0.8278,3173.3,3172.8,6.38917257]
[1736833566119,0.64721873,3173.4,3172.8,7.65206957]
[1736833566120,3.79843873,3173.4,3172.8,7.65206957]
[1736833566319,3.79843873,3173.4,3172.9,0.76520696]
[1736833568233,3.15135,3173.3,3172.8,2.57973087]
[1736833568559,3.15135,3173.3,3172.8,2.072497]
[1736833569549,0.64721873,3173.4,3172.8,0.8096]
[1736833569730,3.15129,3173.3,3172.4,5.0723387]
[1736833569916,3.15147,3173.2,3172.6,1.262989]
[1736833570275,3.15147,3173.2,3172.5,0.8096]
[1736833570575,3.15147,3173.2,3172.5,2.66078887]
[1736833571087,3.15149,3173.1,3172.5,2.66078887]
[1736833571371,3.1513,3173.3,3172.5,2.69230652]
[1736833572023,3.1513,3173.3,3172.6,0.21772431]
[1736833572584,3.1513,3173.3,3172.7,0.8096]
[1736833572880,3.1513,3173.3,3172.8,0.21763219]
[1736833575840,0.64721873,3173.4,3172.9,0.7658]
[1736833576055,0.64721873,3173.4,3173.0,0.21754007]
[1736833579005,3.15133,3173.3,3173.0,0.21754007]
[1736833579507,3.15141,3173.2,3173.0,0.21754007]
[1736833580174,3.53127287,3173.2,3173.0,0.21754007]
[1736833580374,3.53127287,3173.2,3172.7,0.7658]
[1736833580577,3.15141,3173.2,3173.1,0.21747469]
[1736833580778,3.15141,3173.2,3172.7,0.7658]
[1736833580977,3.15141,3173.2,3173.1,0.21747469]
[1736833581179,3.15141,3173.2,3172.7,0.7658]
[1736833581507,0.64721873,3173.4,3172.7,0.7658]
[1736833581508,3.79848873,3173.4,3172.7,0.7658]
[1736833581708,0.64721873,3173.4,3172.7,0.7658]
[1736833582012,3.1513,3173.3,3172.8,0.21761285]
[1736833583556,0.64721873,3173.4,3172.9,0.7658]
[1736833583904,0.64721873,3173.4,3172.9,0.98336679]
[1736833585784,3.79840873,3173.4,3172.9,0.98336679]
[1736833585991,0.64721873,3173.4,3172.9,0.98336679]
[1736833586184,3.7531,3174.0,3173.0,0.7658]
[1736833586397,3.15059,3174.1,3173.2,0.7658]
[1736833586398,3.15058,3174.1,3173.2,0.7658]
[1736833586599,0.7531,3174.5,3173.4,0.7658]
[1736833586803,3.15038,3174.3,3173.5,0.7658]
[1736833586964,0.61981383,3174.2,3173.5,0.98297462]
[1736833588642,3.77023383,3174.2,3173.6,0.7658]
[1736833589000,3.77023383,3174.2,3173.7,0.21708255]
[1736833589945,0.61981383,3174.2,3173.7,0.21708255]
[1736833590245,3.15052,3174.1,3173.7,0.21708255]
[1736833591818,3.1507,3173.9,3173.7,0.21708255]
[1736833592748,3.15079,3173.8,3173.7,0.21708255]
[1736833593709,3.15062,3174.0,3173.7,0.21708255]
[1736833593904,3.15077,3173.9,3173.7,0.21708255]
[1736833594139,3.98279,3173.8,3173.7,0.21708255]
[1736833594341,3.15108,3173.6,3173.2,0.8219]
[1736833594647,3.98279,3173.8,3173.7,0.21669633]
[1736833594845,3.98279,3173.8,3173.2,0.8219]
[1736833595048,0.398279,3173.7,3173.2,0.8219]
[1736833595343,0.398279,3173.7,3173.3,0.21688693]
[1736833595344,3.15119,3173.4,3173.3,0.21688693]
[1736833595549,3.15119,3173.4,3173.0,0.8219]
[1736833595749,3.15119,3173.4,3173.3,0.21688693]
[1736833595948,3.15119,3173.4,3173.0,0.8219]
[1736833596155,3.15119,3173.4,3173.3,0.21688693]
[1736833596358,1.147119,3173.4,3172.6,0.8219]
[1736833596536,3.15139,3173.2,3172.6,0.8219]
[1736833598460,3.79618166,3173.4,3172.6,0.8219]
[1736833598672,3.15122,3173.4,3172.6,0.8219]
[1736833598874,3.15122,3173.4,3172.8,0.8219]
[1736833599568,3.15134,3173.3,3172.8,0.8219]
[1736833600340,3.15142,3173.2,3172.8,0.8219]
[1736833601165,3.15149,3173.1,3172.8,0.8219]
[1736833601835,3.15149,3173.1,3172.9,0.21765693]
[1736833602175,3.15149,3173.1,3172.8,0.8219]
[1736833602341,3.15149,3173.1,3173.0,0.21772677]
[1736833602541,3.15149,3173.1,3172.8,0.8219]
[1736833602767,3.15149,3173.1,3173.0,0.21772677]
[1736833602967,3.15149,3173.1,3172.8,0.8219]
[1736833603270,3.15149,3173.1,3173.0,0.21772677]
[1736833603476,3.15149,3173.1,3172.9,0.21777283]
[1736833603677,3.15149,3173.1,3172.8,0.8219]
[1736833604053,3.15149,3173.1,3172.9,0.21775995]
[1736833604376,3.15149,3173.1,3172.8,0.8219]
[1736833604577,3.15149,3173.1,3173.0,0.21772033]
[1736833604780,3.15149,3173.1,3172.8,0.8219]
[1736833604942,3.15149,3173.1,3173.0,0.21772033]
[1736833605140,3.15149,3173.1,3172.8,0.8219]
[1736833605340,3.15149,3173.1,3173.0,0.21772033]
[1736833605542,3.15149,3173.1,3172.8,0.8219]
[1736833605779,3.15149,3173.1,3173.0,0.21772033]
[1736833606082,3.466639,3173.1,3172.8,0.8219]
[1736833606290,3.15149,3173.1,3172.8,0.8219]
[1736833606582,3.15149,3173.1,3172.9,0.21776639]
[1736833606789,3.15149,3173.1,3172.8,0.8219]
[1736833606989,3.15149,3173.1,3173.0,0.21772033]
[1736833607189,3.15149,3173.1,3172.8,0.8219]
[1736833607499,3.466639,3173.1,3173.0,0.21772033]
[1736833607696,3.15159,3173.0,3172.9,0.21776639]
[1736833608000,3.1518,3172.8,3172.5,0.8219]
[1736833608748,3.15162,3173.0,3172.5,0.8219]
[1736833609212,3.15142,3173.2,3172.5,0.8219]
[1736833609890,3.15142,3173.2,3172.4,0.8219]
[1736833610591,3.15122,3173.4,3172.4,0.85341662]
[1736833610783,3.15122,3173.4,3172.6,0.8219]
[1736833611652,0.63308525,3173.5,3172.7,0.85341483]
[1736833611853,0.63308525,3173.5,3172.8,0.8219]
[1736833612060,3.15063,3174.0,3173.1,0.8219]
[1736833612288,0.61909513,3173.6,3173.3,0.8219]
[1736833612488,3.15063,3174.0,3173.3,0.8219]
[1736833612693,3.15063,3174.0,3173.3,0.85340887]
[1736833613094,3.15063,3174.0,3173.3,0.8219]
[1736833613554,3.15063,3174.0,3173.3,0.85340888]
[1736833614056,3.15063,3174.0,3173.3,0.8219]
[1736833614257,3.15063,3174.0,3173.3,0.85340888]
[1736833615095,3.15063,3174.0,3173.3,0.8219]
[1736833615670,3.15063,3174.0,3173.3,0.85340886]
[1736833615865,3.15063,3174.0,3173.3,0.8219]
[1736833616758,3.15063,3174.0,3173.4,0.2151991]
[1736833618358,0.7601,3174.5,3173.5,0.79070843]
[1736833618662,3.1504,3174.2,3173.5,0.97435305]
[1736833618996,3.14660842,3174.2,3173.5,1.00586059]
[1736833619356,3.14660842,3174.2,3173.6,0.79]
[1736833619553,3.78375789,3174.2,3173.6,1.00448252]
[1736833623889,3.78375789,3174.2,3173.6,1.03598988]
[1736833624183,3.78375789,3174.2,3173.6,1.00448252]
[1736833628187,0.7537,3174.1,3173.6,0.21448252]
[1736833628385,0.7537,3174.1,3173.4,0.79]
[1736833628686,3.15091,3173.7,3173.4,0.79]
[1736833630530,0.7537,3174.1,3173.4,0.79]
[1736833630736,3.15073,3173.9,3173.4,0.79]
[1736833630925,3.15073,3173.9,3173.4,1.37623387]
[1736833631289,3.15073,3173.9,3173.4,0.79]
[1736833631703,3.15073,3173.9,3173.5,0.21432052]
[1736833632592,3.15082,3173.8,3173.5,0.21432052]
[1736833634431,0.63175909,3173.7,3173.5,0.21432052]
[1736833635227,3.15091,3173.7,3173.5,0.21432052]
[1736833635428,3.15102,3173.6,3173.1,0.7875]
[1736833635733,3.15114,3173.5,3173.1,0.7875]
[1736833636131,0.7809,3173.8,3173.1,0.7875]
[1736833636335,3.15121,3173.4,3173.1,0.7875]
[1736833636535,0.0075,3173.7,3172.8,0.7875]
[1736833636836,3.15119,3173.5,3172.8,0.7875]
[1736833636998,3.15119,3173.5,3172.8,2.10213238]
[1736833639238,3.15092,3173.7,3172.9,0.7875]
[1736833640244,3.15092,3173.7,3172.9,0.81901278]
[1736833640630,3.15099,3173.6,3172.9,0.81901278]
[1736833640829,3.15089,3173.7,3172.9,0.7875]
[1736833641021,3.15108,3173.6,3172.9,0.7875]
[1736833641218,3.15108,3173.6,3173.0,0.7875]
[1736833646512,3.15085,3173.8,3173.1,0.03151162]
[1736833646713,3.15085,3173.8,3173.2,0.8212]
[1736833647045,3.15085,3173.8,3173.3,0.8212]
[1736833647549,3.15085,3173.8,3173.4,0.21495872]
[1736833649052,3.15092,3173.7,3173.4,0.21495872]
[1736833649244,3.78053159,3173.9,3173.4,0.21495872]
[1736833649448,3.15079,3173.8,3173.4,0.21495872]
[1736833649634,3.1509,3173.7,3173.4,0.21495872]
[1736833650849,3.15101,3173.6,3173.4,0.21495872]
[1736833651632,3.15109,3173.5,3173.4,0.21495872]
[1736833652141,0.7819,3173.8,3173.4,0.21495872]
[1736833652362,1.23814216,3173.8,3173.3,0.8212]
[1736833652536,3.15119,3173.4,3172.9,0.8259]
[1736833654050,3.15131,3173.3,3172.9,0.8259]
[1736833661777,3.15131,3173.3,3173.0,0.21458294]
[1736833662582,0.0075,3173.7,3173.0,0.21458294]
[1736833662875,3.15117,3173.5,3173.0,0.21458294]
[1736833663067,3.1512,3173.4,3173.0,0.21458294]
[1736833667691,3.1513,3173.3,3173.0,0.21458294]
[1736833671580,3.15119,3173.4,3173.0,0.21458294]
[1736833673560,3.1513,3173.3,3173.0,0.21458294]
[1736833677494,0.63102718,3173.5,3173.0,0.21458294]
[1736833677701,1.0099739,3173.5,3173.0,0.21458294]
[1736833677896,3.15119,3173.4,3173.0,0.21458294]
[1736833678076,3.15141,3173.2,3173.0,0.21458294]
[1736833679300,0.63102718,3173.5,3173.0,0.21458294]
[1736833679504,3.15133,3173.3,3173.0,0.21458294]
[1736833681682,3.15149,3173.1,3173.0,0.21458294]
[1736833682426,3.92503,3173.4,3172.7,0.8184]
[1736833682427,3.15159,3173.0,3172.7,0.8184]
[1736833683403,3.92503,3173.4,3172.7,0.8184]
[1736833683579,3.15144,3173.2,3172.7,0.8184]
[1736833683802,3.15151,3173.1,3172.7,0.8184]
[1736833688025,3.15166,3173.0,3172.7,0.8184]
[1736833688222,0.7738,3173.4,3172.7,0.8184]
[1736833688432,3.15145,3173.2,3172.7,0.8184]
[1736833688995,3.1515,3173.1,3172.7,0.8184]
[1736833690329,0.7738,3173.4,3172.7,0.8184]
[1736833690330,3.15169,3172.9,3172.7,0.8184]
[1736833690626,3.15155,3173.1,3172.7,0.8184]
[1736833690827,3.15161,3173.0,3172.7,0.8184]
[1736833691828,3.15161,3173.0,3172.8,0.21559559]
[1736833692382,3.77224629,3173.0,3172.8,0.21559559]
[1736833692823,3.92549,3172.9,3172.8,0.21559559]
[1736833693075,0.0075,3172.8,3172.0,0.8184]
[1736833693279,3.15931,3172.8,3172.0,0.8184]
[1736833693564,3.15931,3172.8,3172.1,0.20867594]
[1736833693774,3.15222,3172.4,3172.1,0.20867594]
[1736833695318,3.1523,3172.3,3172.1,0.20867594]
[1736833695520,3.15238,3172.2,3172.1,0.20867594]
[1736833695974,3.1526,3172.0,3171.6,0.827]
[1736833696128,0.7755,3172.1,3171.6,0.827]
[1736833696476,0.7755,3172.1,3171.7,0.20932236]
[1736833696477,3.15258,3172.0,3171.7,0.20932236]
[1736833696627,1.168288,3172.1,3171.6,0.827]
[1736833696628,3.15271,3171.9,3171.6,0.827]
[1736833696829,3.15271,3171.9,3171.8,0.20927627]
[1736833697032,3.15271,3171.9,3171.6,0.827]
[1736833697236,3.15271,3171.9,3171.8,0.20927627]
[1736833697442,3.15271,3171.9,3171.6,0.827]
[1736833697654,3.15271,3171.9,3171.8,0.20927627]
[1736833697849,3.15271,3171.9,3171.6,0.827]